Cogmind - Beta 14 @@@ ROGUE MODE // 2024.09.22 @ 10:51:21 Player: Mallow Result: Destroyed by Y-45 Defender with Beam Rifle Performance ------------- Evolutions (1) 500 Regions Visited (3) 600 Robots Destroyed (27) 135 Value Destroyed (625) 625 Prototype IDs (2) 40 Alien Tech Used (0) 0 Bonus (0) 0 TOTAL SCORE: 1900 Bonus ------- None Cogmind --------- Core Integrity 0/400 Matter 21/300 Energy 100/100 System Corruption 0% Temperature Cool (9) Movement Walking (120) Location -9/Materials Parts ------- > --- POWER (1) -------- (None) > --- PROPULSION (4) --- Aluminum Leg > --- UTILITY (2) ------ Medium Storage Unit > --- WEAPON (2) ------- (None) > --- INVENTORY (10) --- Medium Storage Unit Structural Scanner Structural Scanner Utility Shielding Medium Armor Plating Hacking Suite Peak State ------------ > --- POWER ------------ Light Nuclear Core > --- PROPULSION ------- Improved Hover Unit Improved Hover Unit Improved Hover Unit Improved Hover Unit > --- UTILITY ---------- Medium Storage Unit Utility Shielding > --- WEAPON ----------- Light Assault Rifle Mini Grenade Launcher > --- INVENTORY -------- Light Ion Engine Light Treads Light Treads Medium Storage Unit Structural Scanner Structural Scanner Hacking Suite Mini Grenade Launcher [Rating: 17] Favorites ----------- Power Ion Engine Engine Ion Engine Power Core Light Nuclear Core Propulsion Light Treads Treads Light Treads Leg Aluminum Leg Hover Unit Improved Hover Unit Utility Medium Storage Unit Device Structural Scanner Storage Medium Storage Unit Protection Utility Shielding Weapon Mini Grenade Launcher Energy Gun Medium Laser Ballistic Gun Light Assault Rifle Launcher Mini Grenade Launcher Build | -11 -10 -10 -9 ------- Run | Yrd Mat Min Mat Slots Evolved 2 | . . . 2 Power . | . . . . Propulsion 2 | . . . 2 Utility . | . . . . Weapon . | . . . . Parts Attached 26 | 6 6 . 14 Power 5 | 1 2 . 2 Engine 4 | 1 2 . 1 Core 1 | . . . 1 Reactor . | . . . . Propulsion 12 | 2 . . 10 Treads 4 | 2 . . 2 Leg 2 | . . . 2 Wheel . | . . . . Hover 6 | . . . 6 Flight . | . . . . Utility 4 | 1 2 . 1 Device 1 | . . . 1 Storage 2 | 1 1 . . Processor . | . . . . Hackware . | . . . . Protection 1 | . 1 . . Artifact . | . . . . Weapon 5 | 2 2 . 1 Energy Gun 1 | 1 . . . Energy Cannon . | . . . . Ballistic Gun 1 | 1 . . . Ballistic Cannon . | . . . . Launcher 3 | . 2 . 1 Special Weapon . | . . . . Impact Weapon . | . . . . Slashing Weapon . | . . . . Piercing Weapon . | . . . . Special Melee Weapon . | . . . . Unidentified Prototypes . | . . . . Parts Lost 13 | . . . 13 Power 2 | . . . 2 Propulsion 8 | . . . 8 Utility . | . . . . Weapon 3 | . . . 3 Highest Loss Streak 11 | . . . 11 To Critical Strikes . | . . . . Average Slot Usage (%) 91 | . 93 100 85 Engine 12 | . 14 14 8 Treads 20 | . 28 28 1 Hover 10 | . . . 34 Device 1 | . . . 5 Storage 13 | . 14 14 11 Protection 6 | . 7 14 3 Ballistic Gun 10 | . 14 14 2 Launcher 14 | . 13 14 16 Peak Build Rating 17 | 6 9 9 17 Average Rating 9 | 4 8 9 12 On Entrance 6 | . 6 9 9 Naked Turns . | . . . . Heaviest Build 18 | 11 18 18 18 Greatest Support 40 | 40 40 40 40 Greatest Overweight (x) 3 | . . . 3 Average Overweight (x) . | . . . . Largest Inventory Capacity 10 | 8 10 10 10 Average Capacity 9 | 6 8 10 10 Most Carried 10 | 1 10 10 10 Average Carried 7 | . 8 10 6 Final Capacity 10 | 8 10 10 10 Final Carried 10 | 1 10 10 6 Class Distribution -------------------- 100% | Mutant Dominant Class ---------------- Mutant | -10/Materials Mutant | -10/Mines Mutant | -9/Materials Resources | -11 -10 -10 -9 ----------- Run | Yrd Mat Min Mat Matter Collected 433 | 180 142 . 111 Remotely . | . . . . Salvage Created 524 | . 276 . 248 Parts 44 | . 20 . 24 Haulers Intercepted 2 | . 2 . . Recyclers Shooed . | . . . . Parts Field Recycled . | . . . . Retrieved Matter . | . . . . Parts Self-Destructed . | . . . . Prevented . | . . . . Kills | -11 -10 -10 -9 ------- Run | Yrd Mat Min Mat Combat Hostiles Destroyed 15 | . 8 . 7 Guns 1 | . . . 1 AOE 14 | . 8 . 6 Classes Destroyed 10 | . 7 . 3 Worker 2 | . 2 . . Builder 2 | . . . 2 Hauler 2 | . 2 . . Recycler 1 | . 1 . . Mechanic 1 | . . . 1 Operator 2 | . 1 . 1 Watcher 2 | . 2 . . Swarmer 3 | . 3 . . Grunt 10 | . 5 . 5 Sentry 2 | . . . 2 Best Kill Streak 5 | . 5 . 4 Combat Bots Only 3 | . 3 . 3 Max Kills in Single Turn 4 | . 3 . 4 Gunslinging . | . . . . Exploded 3 | . 2 . 3 Melee . | . . . . Uniques/NPCs Destroyed . | . . . . Combat | -11 -10 -10 -9 -------- Run | Yrd Mat Min Mat Hostile Shots Fired 119 | . 14 . 105 Missed 32 | . 5 . 27 Damage Taken 1439 | . 243 . 1196 Core 420 | . 13 . 407 Absorbed by Shields . | . . . . Redirected to Shielding 6 | . 6 . . Core Remaining (%) 97 | 100 . 94 . Volleys Fired 41 | . 29 . 12 Largest 2 | . 2 . 2 Hottest 60 | . 50 . 60 Shots Fired 54 | . 33 . 21 Gun 22 | . 14 . 8 Cannon . | . . . . Launcher 32 | . 19 . 13 Special . | . . . . Kinetic 22 | . 14 . 8 Thermal . | . . . . Explosive 32 | . 19 . 13 Electromagnetic . | . . . . Robot Hit Streak 7 | . 5 . 7 Robot Miss Streak 3 | . 3 . 1 Penetration Max . | . . . . Secondary Targets . | . . . . Shots Hit Robots 31 | . 16 . 15 Core Hits 45 | . 26 . 19 Critical Kills . | . . . . Critical Parts Destroyed 1 | . . . 1 Critical Strikes 1 | . . . 1 Destroy 1 | . . . 1 Melee Attacks . | . . . . Impact . | . . . . Slashing . | . . . . Piercing . | . . . . Sneak Attacks . | . . . . Combat Hostiles . | . . . . Follow-up Attacks . | . . . . Damage Inflicted 1780 | . 1115 . 665 Guns 111 | . 67 . 44 Cannons . | . . . . Explosions 1616 | . 1041 . 575 Melee . | . . . . Ramming 53 | . 7 . 46 Kinetic 111 | . 67 . 44 Thermal . | . . . . Explosive 1616 | . 1041 . 575 Electromagnetic . | . . . . Impact . | . . . . Slashing . | . . . . Piercing . | . . . . Highest Corruption . | . . . . Average Corruption . | . . . . Corruption Purged . | . . . . Corruption Blocked . | . . . . Overload Shots . | . . . . Overflow Damage 80 | . 4 . 76 Projectiles . | . . . . Explosions 65 | . 4 . 61 Melee 15 | . . . 15 Knockbacks . | . . . . Impact . | . . . . Kinetic . | . . . . Secondary . | . . . . Self-Inflicted Damage 272 | . 142 . 130 Shots 12 | . 8 . 4 Rammed 4 | . 2 . 2 Targets Rammed 8 | . 2 . 6 Kicked 4 | . . . 4 Crushed . | . . . . Highest Temperature 58 | . 53 . 58 Average Temperature 19 | . 30 . 14 Received Heat Transfer 462 | . 69 . 393 Siege Activations . | . . . . Robots Corrupted . | . . . . Combat Hostiles . | . . . . Parts Fried . | . . . . Impact Corruptions 1 | . . . 1 Robots Melted . | . . . . Combat Hostiles . | . . . . Parts Melted . | . . . . Heat Transferred . | . . . . Parts Sabotaged . | . . . . Parts Stolen . | . . . . Parts Stripped . | . . . . Power Chain Reactions . | . . . . Alert | -11 -10 -10 -9 ------- Run | Yrd Mat Min Mat Peak Influence 362 | . 361 82 362 Initial 82 | . . 82 31 Average 146 | . 114 82 261 Maximum Alert Level 1 | . 1 . 1 Low Security (%) 57 | 100 66 100 19 Level 1 42 | . 33 . 80 Level 2 . | . . . . Level 3 . | . . . . Level 4 . | . . . . Level 5 . | . . . . High Security . | . . . . Max Security . | . . . . Squads Dispatched 3 | . 2 . 1 Investigation . | . . . . Extermination . | . . . . Reinforcement 3 | . 2 . 1 Assault . | . . . . Garrison . | . . . . Intercept . | . . . . Searches Triggered . | . . . . Construction Impeded . | . . . . Haulers Reinforced . | . . . . Active Scanning Responses . | . . . . Cargo Convoy Interrupts . | . . . . Stealth | -11 -10 -10 -9 --------- Run | Yrd Mat Min Mat Distress Signals 3 | . 2 . 1 Communications Jammed . | . . . . Distress Signals . | . . . . Times Spotted 29 | . 17 . 12 Peak Tracking Total 6 | . 6 . 5 Tactical Retreats . | . . . . Traps | -11 -10 -10 -9 ------- Run | Yrd Mat Min Mat Traps Triggered . | . . . . Indirectly . | . . . . Trap Hack Attempts . | . . . . Triggered . | . . . . Disarmed . | . . . . Reprogrammed . | . . . . Reused . | . . . . Traps Extracted . | . . . . Installed . | . . . . Triggered . | . . . . Machines | -11 -10 -10 -9 ---------- Run | Yrd Mat Min Mat Machines Disabled 4 | . 3 . 1 Max in Single Turn 1 | . 1 . 1 Machines Repaired . | . . . . Machines Dismantled . | . . . . Machines Sabotaged . | . . . . Overloaded Fab Kills . | . . . . Hacking | -11 -10 -10 -9 --------- Run | Yrd Mat Min Mat Machines Accessed 5 | . 2 . 3 Terminals 3 | . 1 . 2 Fabricators . | . . . . Repair Stations . | . . . . Recycling Units 2 | . 1 . 1 Scanalyzers . | . . . . Garrison Access . | . . . . Total Hacks 15 | . 7 . 8 Successful 10 | . 3 . 7 Failed 5 | . 4 . 1 Catastrophic . | . . . . Database Lockouts . | . . . . Manual . | . . . . Terminals 11 | . 5 . 6 Fabricators . | . . . . Repair Stations . | . . . . Recycling Units 4 | . 2 . 2 Scanalyzers . | . . . . Garrison Access . | . . . . Terminal Hacks 8 | . 3 . 5 Record 4 | . 1 . 3 Prototype ID Bank 1 | . . . 1 Alert Level 1 | . 1 . . Reinforcement Status 1 | . 1 . . Registered Components 1 | . . . 1 Fabricator Hacks . | . . . . Repair Station Hacks . | . . . . Recycling Unit Hacks 2 | . . . 2 Retrieve Matter 1 | . . . 1 Retrieve Components 1 | . . . 1 Scanalyzer . | . . . . Garrison Access Hacks . | . . . . Unauthorized Hacks . | . . . . Terminals . | . . . . Fabricators . | . . . . Repair Stations . | . . . . Recycling Units . | . . . . Scanalyzers . | . . . . Garrison Access . | . . . . Data Cores Recovered 1 | . . . 1 Used . | . . . . Hacking Detections 4 | . 1 . 3 Full Trace Events . | . . . . Feedback Events . | . . . . Feedback Blocked . | . . . . Robot Schematics Acquired . | . . . . Robots Built . | . . . . Authchips . | . . . . Time . | . . . . Total Robot Build Rating . | . . . . Part Schematics Acquired . | . . . . Parts Built . | . . . . Authchips . | . . . . Time . | . . . . Total Part Build Rating . | . . . . Parts Repaired . | . . . . Time . | . . . . Parts Recycled . | . . . . Recycled Matter . | . . . . Retrieved Matter . | . . . . Retrieved Components 3 | . . . 3 Parts Scanalyzed . | . . . . Part Schematics Acquired . | . . . . Parts Damaged . | . . . . Bothacking | -11 -10 -10 -9 ------------ Run | Yrd Mat Min Mat Used RIF Installer . | . . . . Robots Hacked . | . . . . Non-combat . | . . . . Combat . | . . . . Robot Hacks Applied . | . . . . Relay Couplers Released . | . . . . Fabnet Peak Effective % . | . . . . Robots Rewired . | . . . . Allies Hacked . | . . . . Hacks Repelled . | . . . . Allies | -11 -10 -10 -9 -------- Run | Yrd Mat Min Mat Total Allies . | . . . . Largest Group . | . . . . Highest-Rated Group . | . . . . Highest-Rated Ally . | . . . . Total Orders . | . . . . Ally Attacks . | . . . . Total Damage . | . . . . Kills . | . . . . Allies Corrupted . | . . . . Allies Melted . | . . . . Intel | -11 -10 -10 -9 ------- Run | Yrd Mat Min Mat Robot Analysis Total . | . . . . Derelict Logs Recovered . | . . . . Drone Launches . | . . . . Drone Recoveries . | . . . . Exploration | -11 -10 -10 -9 ------------- Run | Yrd Mat Min Mat Turns Passed 1389 | 89 826 85 389 Spaces Moved 1094 | 52 397 54 591 Core 6 | 3 . . 3 Treads 518 | 49 397 54 18 Legs 12 | . . . 12 Wheels . | . . . . Hover 558 | . . . 558 Flight . | . . . . Fastest Speed 48 | 50 160 160 48 Average Speed 103 | 153 160 160 55 Slowest Speed 200 | 160 160 160 200 Overloaded Moves . | . . . . Propulsion Burnouts . | . . . . Robots Hopped . | . . . . Cave-ins Triggered . | . . . . Exploration Rate (%) 31 | 4 58 23 41 Regions Visited 3 Branch Regions 1 Pre-discovered Areas . | . . . . Known Exits Taken . | . . . . Unknown Exits Taken 3 | 1 1 1 . Scrap Searched . | . . . . Spaces Dug 10 | . . . 10 Terrain Destroyed 237 | . 125 . 112 Melee . | . . . . Projectile . | . . . . AOE 237 | . 125 . 112 Terrain Rammed . | . . . . Walls Destroyed . | . . . . Machines Disabled . | . . . . Actions | -11 -10 -10 -9 --------- Run | Yrd Mat Min Mat Total 1299 | 58 557 53 631 Wait 109 | . 109 . . Move 1091 | 51 396 53 591 Hop . | . . . . Pick Up 15 | 1 11 . 3 Fast Attach 10 | 6 1 . 3 Attach 11 | . 1 . 10 Detach 2 | . . . 2 Swap 5 | . 4 . 1 Drop 7 | . 4 . 3 Fire 41 | . 29 . 12 Melee . | . . . . Ram 1 | . . . 1 Kick 4 | . . . 4 Crush 3 | . 2 . 1 Escape Stasis . | . . . . Rewire . | . . . . Trap . | . . . . Miscellaneous . | . . . . Route ------- -11/Scrapyard -10/Materials (discovered 2 exits: *Mat / [*Min]) -10/Mines -9/Materials (discovered 3 exits: [*Mat] / [*Min] / [*Sto]) History --------- Turn | Location | Event 20 | -11/Scrapyard | Discovered new exit (range 16) 90 | -11/Scrapyard | Entered Materials 182 | -10/Materials | Discovered new exit (range 5) 305 | -10/Materials | Build established: Mutant 651 | -10/Materials | Discovered new exit (range 15) 916 | -10/Materials | Entered Mines 979 | -10/Mines | Discovered new exit (range 14) 1001 | -10/Mines | Entered Materials 1001 | -9/Materials | Evolved 2 slots: Propulsion x2 1064 | -9/Materials | Discovered new exit (range 15) 1244 | -9/Materials | Discovered new exit (range 11) 1294 | -9/Materials | Discovered new exit (range 12) 1363 | -9/Materials | Core integrity fell below 50% 1372 | -9/Materials | Core integrity fell below 20% 1390 | -9/Materials | Destroyed by Y-45 Defender with Beam Rifle Last Messages --------------- U-05 Engineer lays Concrete. Kicked W-16 Scout. U-05 Engineer lays Concrete. Kicked W-16 Scout. U-05 Engineer lays Concrete. Kicked W-16 Scout. U-05 Engineer builds a Wall. Kicked W-16 Scout. Aluminum Leg destroyed. U-05 Engineer lays Concrete. Acquired Aluminum Leg. U-05 Engineer builds a Wall. The unstable cave ceiling collapses. U-05 Engineer lays Concrete. K-01 Serf collects debris. U-05 Engineer builds a Door. K-01 Serf destroyed. K-01 Serf collects debris. R-06 Scavenger collects Sml. Laser. U-05 Engineer lays Concrete. Map ----- +----------------------------------------------------+ | ##???????????????????????????????????????????????? | | ##???????????????????????????????????????????????? | | ##???????????????????????????????????????????????? | | ##???????????????????????????????????????????????? | | #########????????????????????????????????????????? | | #########????????????????????????????????????????? | | # "" ##????????????????????????????????????????? | | # ""S ##????????????????????????????????????????? | | # "" ##????????????????????????????????????????? | | + ##????????????????????????????????????????? | | # ##????????????????????????????????????????? | | # ##????????????????????????????????????????? | | #########????????????????????????????????????????? | | #########?????????????? ? #??????????????????????? | | ##?????????????????????%? #??????????????????????? | | ##???????????????????##! #??????????????????????? | | ##???????????????????# ??????????????????????? | | ##???????????????????? ???????????????????????? | | ###???######## ??????? T ???????????????????????? | | ############## ???????? ???????????????????????? | | ####### # ???????? = ???????????????????????? | | # ? ###%### ????????????????????? | | < ##?########+####????????????????????? | | ##?## ##????????????????????? | | ####### ##?## ##????????????????????? | | ######### ###?## @ ##????????????????????? | | ##### ### ###?## ##????????????????????? | | ! # ##??## ! ! ##????????????????????? | | + ##??## !!! ##????????????????????? | | "T" !! # ##??## !!! ##????????????????????? | | !! # ###### k ##### ?????????????? | | ######### ########## # #r###########+#?????????? | | Y !u ???????? | | ## ! ???????? | | ## ???????? | | ###+#+############## #############???????? | | # ############# # ###############???????? | | ??????????????????????######?????????????????????? | | ?????????????????????????????????????????????????? | | ?????????????????????????????????????????????????? | | ?????????????????????????????????????????????????? | | | | | | | | | | | | | | | | | | | +----------------------------------------------------+ Best States ------------- Heat Dissipation 28 Energy Generation 14 Energy Capacity 250 Matter Stores 220 Matter Capacity 300 Sight Range 16 Terrain Scan Density 10 Utility Shielding 33 Evasion (%) 55 Recoil Reduction 2 Item Schematics ----------------- None Robot Schematics ------------------ None Fabricated ------------ Nothing Alien Tech Used ----------------- None Achievements -------------- None Challenges ------------ None Game ------ Seed DiametricCouplerClaymores Manual? 0 Play Time 00:14:53 Cumulative 31.2 hours Start 2024.09.22 @ 10:36:58 End 2024.09.22 @ 10:51:21 Sessions 1 Manual Loads 0 Difficulty Rogue Special Mode None Game No. 58 Rogue 58 Adventurer 0 Explorer 0 Win Type - Total 0 Types 0/0/0/0/0/0/0/0/0 Lore% 13 Gallery% 31 Achievement% 23 Wizard Run 0 Options --------- Layout 0 ASCII 0 Keyboard 0 Movement Arrows Keybinds 0 Fullscreen 2 Font 24/Smallcaps Map View 56x25 Zoom Use 62% Tactical HUD 0 Map Filters NONE Filters NONE Steam 1 RUN: 13961cf4-2bd3-4f7b-ae10-5e7e747b9031